[Event "78th GEO-ch Women 1st League 2021"]
[Site "Tbilisi"]
[Date "2021.03.25"]
[Round "8.10"]
[White "Mamardashvili, Ana"]
[Black "Bedoshvili, Dea"]
[Result "0-1"]
[ECO "D31"]
[WhiteElo "1416"]
[BlackElo "1667"]
[Annotator "NA RC"]
[PlyCount "136"]
[EventDate "2021.03.18"]
[EventType "swiss"]
[EventCountry "GEO"]
[SourceTitle "playchess.com"]
[Source "ChessBase"]
[SourceQuality "1"]
[TimeControl "5400+30"]

1. d4 {[%emt 0:00:15]} d5 {[%emt 0:00:00]} 2. c4 {[%emt 0:00:10]} c6 {[%emt 0:00:00]} 3. Nc3 {[%emt 0:00:36]} e6 {[%emt 0:00:00]} 4. e4 {[%emt 0:00:12]} dxe4 {[%emt 0:06:14]} 5. Nxe4 {[%emt 0:00:09]} Bb4+ {[%emt 0:02:25]} 6. Nc3 {[%emt 0:00:10]} Nf6 {[%emt 0:00:53]} 7. a3 {[%emt 0:01:07]} Ba5 {[%emt 0:01:14]} 8. b4 {[%emt 0:00:15]} Bc7 {[%emt 0:00:05]} 9. Nf3 {[%emt 0:00:46]} b6 {[%emt 0:01:04]} 10. Bd3 {[%emt 0:01:59]} Bb7 {[%emt 0:01:44]} 11. O-O {[%emt 0:01:59]} Nbd7 {[%emt 0:01:22]} 12. Re1 {[%emt 0:03:04]} h6 {[%emt 0:02:49]} 13. Bb2 {[%emt 0:04:46]} O-O {[%emt 0:00:28]} 14. Bc2 {[%emt 0:05:38]} Re8 {[%emt 0:30:27]} 15. h3 {[%emt 0:11:14]} a5 {[%emt 0:11:57]} 16. Rb1 {[%emt 0:06:33]} Nf8 {[%emt 0:09:44]} 17. Ne5 {[%emt 0:05:28]} Qe7 {[%emt 0:02:37]} 18. bxa5 {[%emt 0:08:09]} Rxa5 {[%emt 0:00:30]} 19. a4 {[%emt 0:00:11]} Rd8 {[%emt 0:01:02]} 20. Nf3 {[%emt 0:02:32]} Rh5 {[%emt 0:02:22]} 21. Qe2 {[%emt 0:03:01]} Qd6 {[%emt 0:06:09]} 22. Rbd1 {[%emt 0:04:28]} Qb4 {[%emt 0:04:53]} 23. Ba1 {[%emt 0:07:07]} Ra5 {[%emt 0:02:45]} 24. Rb1 {[%emt 0:08:16]} Qe7 {[%emt 0:00:29]} 25. Kh1 {[%emt 0:01:09]} Nh5 {[%emt 0:01:26]} 26. c5 {[%emt 0:05:37]} Ba6 {[%emt 0:02:28]} 27. Qe4 {[%emt 0:02:48]} bxc5 {[%emt 0:00:24]} 28. d5 {[%emt 0:02:01]} Nf6 {[%emt 0:01:11]} 29. Qh4 {[%emt 0:04:39]} cxd5 {[%emt 0:00:28]} 30. Nb5 {[%emt 0:00:49]} Bxb5 {[%emt 0:00:48]} 31. axb5 {[%emt 0:00:07]} Rb8 {[%emt 0:00:30]} 32. Ne5 {[%emt 0:02:56]} Bxe5 {[%emt 0:00:23]} 33. Bxe5 {[%emt 0:00:05]} Rbxb5 {[%emt 0:00:17]} 34. Rxb5 {[%emt 0:00:56]} Rxb5 {[%emt 0:07:52]} 35. Ra1 {[%emt 0:00:03]} Ng6 {[%emt 0:00:00]} 36. Ra8+ {[%emt 0:00:31]} Kh7 {[%emt 0:00:00]} 37. Qa4 {[%emt 0:01:59]} Rb7 {[%emt 0:00:00]} 38. Qc6 {[%emt 0:00:52]} Ne4 {[%emt 0:00:03]} 39. Bxe4 {[%emt 0:00:48]} dxe4 {[%emt 0:00:04]} 40. Qxe4 {[%emt 0:00:34]} Rb4 {[%emt 0:00:28]} 41. Qc2 {[%emt 0:01:30]} Qb7 {[%emt 0:01:01]} 42. Rb8 {[%emt 0:00:30]} Qe4 {[%emt 0:00:25]} 43. Qxe4 {[%emt 0:03:29]} Rxe4 {[%emt 0:00:04]} 44. Bd6 {[%emt 0:01:13]} c4 {[%emt 0:01:17]} 45. Rc8 {[%emt 0:00:07]} Nh4 {[%emt 0:00:49]} 46. Bb4 {[%emt 0:00:46]} Rd4 {[%emt 0:00:29]} 47. Kh2 {[%emt 0:00:32]} Nf5 {[%emt 0:00:17]} 48. Bc3 {[%emt 0:00:32]} Nd6 {[%emt 0:00:10]} 49. Rc6 {[%emt 0:00:38]} Rd3 {[%emt 0:00:12]} 50. Be5 {[%emt 0:00:39]} Ne4 {[%emt 0:00:06]} 51. Rxc4 {[%emt 0:00:39]} Nxf2 {[%emt 0:00:03]} 52. Rf4 {[%emt 0:00:15]} Rd5 {[%emt 0:00:31]} 53. Rxf2 {[%emt 0:00:52]} Rxe5 {[%emt 0:00:04]} 54. Rxf7 {[%emt 0:00:04]} Kg6 {[%emt 0:00:05]} 55. Re7 {[%emt 0:00:15]} Kf6 {[%emt 0:00:08]} 56. Rc7 {[%emt 0:00:26]} Rf5 {[%emt 0:00:21]} 57. g4 {[%emt 0:00:44]} Rf4 {[%emt 0:00:37]} 58. Kg3 {[%emt 0:00:20]} Rd4 {[%emt 0:00:28]} 59. h4 {[%emt 0:00:32]} Rd3+ {[%emt 0:00:09]} 60. Kf4 {[%emt 0:00:17]} g5+ {[%emt 0:00:45]} 61. Ke4 {[%emt 0:01:01]} Rg3 {[%emt 0:00:10]} 62. hxg5+ {[%emt 0:00:07]} hxg5 {[%emt 0:00:08]} 63. Rh7 {[%emt 0:00:24]} Rxg4+ {[%emt 0:00:07]} 64. Kf3 {[%emt 0:00:05]} Rh4 {[%emt 0:00:38]} 65. Rb7 {[%emt 0:00:18]} e5 {[%emt 0:00:20]} 66. Rb8 {[%emt 0:00:19]} Rf4+ {[%emt 0:00:26]} 67. Kg3 {[%emt 0:00:14]} Kf5 {[%emt 0:00:42]} 68. Rb5 {[%emt 0:00:15]} g4 {[%emt 0:00:14]} 0-1

[Event "78th GEO-ch Women 1st League 2021"]
[Site "Tbilisi"]
[Date "2021.03.25"]
[Round "8.11"]
[White "Mkrtchyan, Aida"]
[Black "Tasoshvili, Tamar"]
[Result "0-1"]
[ECO "B01"]
[WhiteElo "1156"]
[BlackElo "1528"]
[Annotator "NA RC"]
[PlyCount "64"]
[EventDate "2021.03.18"]
[EventType "swiss"]
[EventCountry "GEO"]
[SourceTitle "playchess.com"]
[Source "ChessBase"]
[SourceQuality "1"]
[TimeControl "5400+30"]

1. e4 {[%emt 0:18:34]} d5 {[%emt 0:00:00]} 2. exd5 {[%emt 0:00:29]} Qxd5 {[%emt 0:00:00]} 3. Nc3 {[%emt 0:00:13]} Qd6 {[%emt 0:00:00]} 4. d4 {[%emt 0:01:40]} c6 {[%emt 0:00:00]} 5. Bc4 {[%emt 0:01:41]} Nf6 {[%emt 0:00:48]} 6. h3 {[%emt 0:02:16]} Bf5 {[%emt 0:00:15]} 7. Nf3 {[%emt 0:01:39]} Nbd7 {[%emt 0:00:17]} 8. Bg5 {[%emt 0:02:54]} e6 {[%emt 0:00:10]} 9. Qd2 {[%emt 0:04:05]} Qc7 {[%emt 0:00:06]} 10. Bf4 {[%emt 0:03:09]} Bd6 {[%emt 0:00:30]} 11. g3 {[%emt 0:01:50]} Bxf4 {[%emt 0:01:31]} 12. gxf4 {[%emt 0:00:12]} Be4 {[%emt 0:03:32]} 13. Nxe4 {[%emt 0:00:37]} Nxe4 {[%emt 0:00:02]} 14. Qe3 {[%emt 0:00:51]} Ndf6 {[%emt 0:03:55]} 15. O-O-O {[%emt 0:00:57]} O-O-O {[%emt 0:09:27]} 16. Ne5 {[%emt 0:03:37]} Nd6 {[%emt 0:00:58]} 17. Bb3 {[%emt 0:00:34]} Nf5 {[%emt 0:00:40]} 18. Qc3 {[%emt 0:00:56]} Nd5 {[%emt 0:07:02]} 19. Qf3 {[%emt 0:01:23]} f6 {[%emt 0:03:43]} 20. Nc4 {[%emt 0:02:00]} Qxf4+ {[%emt 0:01:03]} 21. Qxf4 {[%emt 0:00:32]} Nxf4 {[%emt 0:00:01]} 22. c3 {[%emt 0:00:25]} Nd6 {[%emt 0:01:44]} 23. Nxd6+ {[%emt 0:00:53]} Rxd6 {[%emt 0:00:01]} 24. Rhg1 {[%emt 0:00:54]} Ne2+ {[%emt 0:00:14]} 25. Kb1 {[%emt 0:00:33]} Nxg1 {[%emt 0:00:05]} 26. Rxg1 {[%emt 0:00:13]} g5 {[%emt 0:00:26]} 27. Re1 {[%emt 0:00:28]} Re8 {[%emt 0:00:31]} 28. Bc2 {[%emt 0:00:06]} h6 {[%emt 0:00:25]} 29. Kc1 {[%emt 0:00:18]} Kd8 {[%emt 0:00:15]} 30. Re3 {[%emt 0:00:36]} e5 {[%emt 0:00:33]} 31. Bg6 {[%emt 0:00:40]} Re7 {[%emt 0:00:15]} 32. dxe5 {[%emt 0:00:30]} Rxe5 {[%emt 0:00:22]} 0-1

[Event "78th GEO-ch Women 1st League 2021"]
[Site "Tbilisi"]
[Date "2021.03.26"]
[Round "9.1"]
[White "Lomaia, Diana"]
[Black "Pipia, Ekaterine"]
[Result "1-0"]
[ECO "A42"]
[WhiteElo "1946"]
[BlackElo "2019"]
[Annotator "NA"]
[PlyCount "69"]
[EventDate "2021.03.18"]
[EventType "swiss"]
[EventCountry "GEO"]
[SourceTitle "playchess.com"]
[Source "ChessBase"]
[SourceQuality "1"]
[TimeControl "5400+30"]

1. d4 {[%emt 0:00:00]} d6 {[%emt 0:00:00]} 2. Nf3 {[%emt 0:00:00]} g6 {[%emt 0:00:03]} 3. c4 {[%emt 0:00:18]} Bg7 {[%emt 0:00:03]} 4. Nc3 {[%emt 0:00:12]} Nd7 {[%emt 0:03:04]} 5. g3 {[%emt 0:05:44]} e5 {[%emt 0:00:39]} 6. e4 {[%emt 0:03:01]} Ne7 {[%emt 0:01:10]} 7. Bg2 {[%emt 0:01:01]} O-O {[%emt 0:00:31]} 8. O-O {[%emt 0:01:26]} a5 {[%emt 0:05:12]} 9. Re1 {[%emt 0:05:02]} exd4 {[%emt 0:01:26]} 10. Nxd4 {[%emt 0:00:09]} Nc5 {[%emt 0:00:17]} 11. Bf4 {[%emt 0:05:47]} Ne6 {[%emt 0:05:12]} 12. Be3 {[%emt 0:01:45]} Nxd4 {[%emt 0:00:59]} 13. Bxd4 {[%emt 0:00:06]} Bxd4 {[%emt 0:01:56]} 14. Qxd4 {[%emt 0:00:08]} Nc6 {[%emt 0:00:07]} 15. Qd2 {[%emt 0:02:37]} Ne5 {[%emt 0:00:53]} 16. b3 {[%emt 0:00:39]} c6 {[%emt 0:11:01]} 17. f4 {[%emt 0:05:31]} Ng4 {[%emt 0:00:45]} 18. Re2 {[%emt 0:00:30]} b5 {[%emt 0:07:43]} 19. cxb5 {[%emt 0:02:12]} cxb5 {[%emt 0:04:09]} 20. h3 {[%emt 0:01:27]} Nf6 {[%emt 0:03:44]} 21. e5 {[%emt 0:02:55]} b4 {[%emt 0:00:24]} 22. Na4 {[%emt 0:02:52]} Ba6 {[%emt 0:13:43]} 23. Bxa8 {[%emt 0:01:56]} Qxa8 {[%emt 0:01:26]} 24. exf6 {[%emt 0:00:35]} Bxe2 {[%emt 0:01:05]} 25. Qxe2 {[%emt 0:00:02]} Re8 {[%emt 0:00:17]} 26. Qf2 {[%emt 0:00:58]} Qe4 {[%emt 0:02:18]} 27. Rd1 {[%emt 0:01:20]} Qe6 {[%emt 0:00:45]} 28. Nb6 {[%emt 0:02:36]} Qxh3 {[%emt 0:01:16]} 29. Re1 {[%emt 0:01:02]} Rb8 {[%emt 0:01:58]} 30. Nc4 {[%emt 0:03:44]} d5 {[%emt 0:00:08]} 31. Ne5 {[%emt 0:01:54]} Rc8 {[%emt 0:03:00]} 32. Nxf7 {[%emt 0:01:19]} Kf8 {[%emt 0:10:21]} 33. Ng5 {[%emt 0:00:22]} Qd7 {[%emt 0:00:46]} 34. Re7 {[%emt 0:03:08]} Rc1+ {[%emt 0:00:34]} 35. Kh2 {[%emt 0:00:44]} 1-0

[Event "78th GEO-ch Women 1st League 2021"]
[Site "Tbilisi"]
[Date "2021.03.26"]
[Round "9.2"]
[White "Sichinava, Mariam"]
[Black "Vakhania, Alexandra"]
[Result "0-1"]
[ECO "A90"]
[WhiteElo "1516"]
[BlackElo "2134"]
[Annotator "ChessBase"]
[PlyCount "91"]
[EventDate "2021.03.18"]
[EventType "swiss"]
[EventCountry "GEO"]
[SourceTitle "playchess.com"]
[Source "ChessBase"]
[SourceQuality "1"]
[TimeControl "5400+30"]

1. Nf3 {[%emt 0:04:37]} f5 {[%emt 0:01:09]} 2. g3 {[%emt 0:00:06]} Nf6 {[%emt 0:00:05]} 3. Bg2 {[%emt 0:00:05]} e6 {[%emt 0:00:07]} 4. c4 {[%emt 0:00:56]} d5 {[%emt 0:00:23]} 5. d4 {[%emt 0:00:19]} c6 {[%emt 0:00:11]} 6. O-O {[%emt 0:00:13]} Bd6 {[%emt 0:00:04]} 7. b3 {[%emt 0:00:06]} Qe7 {[%emt 0:00:11]} 8. Bb2 {[%emt 0:00:12]} O-O {[%emt 0:00:05]} 9. Nbd2 {[%emt 0:01:27]} Nbd7 {[%emt 0:03:14]} 10. Ne5 {[%emt 0:00:18]} Ne4 {[%emt 0:01:13]} 11. Ndf3 {[%emt 0:00:28]} Ndf6 {[%emt 0:00:34]} 12. Nd3 {[%emt 0:00:23]} Bd7 {[%emt 0:01:35]} 13. Nfe5 {[%emt 0:00:27]} Be8 {[%emt 0:00:16]} 14. f3 {[%emt 0:09:40]} Ng5 {[%emt 0:00:08]} 15. Qc1 {[%emt 0:04:39]} Nf7 {[%emt 0:00:39]} 16. a4 {[%emt 0:02:17]} Nd7 {[%emt 0:02:35]} 17. Ba3 {[%emt 0:09:09]} Nfxe5 {[%emt 0:03:35]} 18. dxe5 {[%emt 0:00:29]} Bxa3 {[%emt 0:00:51]} 19. Rxa3 {[%emt 0:00:07]} f4 {[%emt 0:02:44]} 20. Nxf4 {[%emt 0:10:43]} Nxe5 {[%emt 0:00:37]} 21. Nd3 {[%emt 0:03:05]} Nxd3 {[%emt 0:03:41]} 22. exd3 {[%emt 0:00:02]} Qc5+ {[%emt 0:00:08]} 23. Kh1 {[%emt 0:00:46]} Bg6 {[%emt 0:00:10]} 24. Rd1 {[%emt 0:02:29]} e5 {[%emt 0:01:04]} 25. cxd5 {[%emt 0:05:39]} Qxc1 {[%emt 0:00:10]} 26. Rxc1 {[%emt 0:00:04]} cxd5 {[%emt 0:00:07]} 27. b4 {[%emt 0:44:44]} Rac8 {[%emt 0:03:16]} 28. Re1 {[%emt 0:00:00]} d4 {[%emt 0:00:48]} 29. Bh3 {[%emt 0:00:00]} Rc2 {[%emt 0:02:37]} 30. Be6+ {[%emt 0:00:00]} Bf7 {[%emt 0:01:07]} 31. Bc4 {[%emt 0:00:00]} Bxc4 {[%emt 0:01:06]} 32. dxc4 {[%emt 0:00:00]} Rxc4 {[%emt 0:00:12]} 33. Rxe5 {[%emt 0:00:00]} Rxb4 {[%emt 0:00:09]} 34. Rd5 {[%emt 0:00:00]} Rc8 {[%emt 0:01:41]} 35. Kg2 {[%emt 0:00:00]} Kf7 {[%emt 0:00:47]} 36. Rd7+ {[%emt 0:00:00]} Kf6 {[%emt 0:00:19]} 37. a5 {[%emt 0:00:00]} h5 {[%emt 0:01:18]} 38. a6 {[%emt 0:00:00]} Rc2+ {[%emt 0:00:35]} 39. Kh3 {[%emt 0:00:00]} Rbb2 {[%emt 0:00:12]} 40. g4 {[%emt 0:00:00]} g5 {[%emt 0:00:23]} 41. f4 {[%emt 0:00:00]} Rxh2+ {[%emt 0:00:33]} 42. Kg3 {[%emt 0:00:00]} h4+ {[%emt 0:00:22]} 43. Kf3 {[%emt 0:00:00]} Rh3+ {[%emt 0:00:16]} 44. Ke4 {[%emt 0:00:00]} Rxa3 {[%emt 0:00:06]} 45. axb7 {[%emt 0:00:00]} Rab3 {[%emt 0:00:15]} 46. Kxd4 {[%emt 0:09:30]} 0-1

[Event "78th GEO-ch Women 1st League 2021"]
[Site "Tbilisi"]
[Date "2021.03.26"]
[Round "9.3"]
[White "Mikadze, Miranda"]
[Black "Gvetadze, Sofio"]
[Result "0-1"]
[ECO "C41"]
[WhiteElo "2269"]
[BlackElo "2317"]
[Annotator "ChessBase"]
[PlyCount "98"]
[EventDate "2021.03.18"]
[EventType "swiss"]
[EventCountry "GEO"]
[SourceTitle "playchess.com"]
[Source "ChessBase"]
[SourceQuality "1"]
[TimeControl "5400+30"]

1. e4 {[%emt 0:00:00]} d6 {[%emt 0:00:00]} 2. d4 {[%emt 0:00:00]} Nf6 {[%emt 0:00:00]} 3. Nc3 {[%emt 0:02:26]} c6 {[%emt 0:00:00]} 4. a4 {[%emt 0:00:29]} Nbd7 {[%emt 0:00:58]} 5. Nf3 {[%emt 0:00:07]} e5 {[%emt 0:01:05]} 6. g3 {[%emt 0:01:05]} Be7 {[%emt 0:00:40]} 7. Bg2 {[%emt 0:00:09]} O-O {[%emt 0:00:20]} 8. O-O {[%emt 0:00:08]} a5 {[%emt 0:00:49]} 9. b3 {[%emt 0:00:18]} Re8 {[%emt 0:02:43]} 10. Bb2 {[%emt 0:00:28]} Bf8 {[%emt 0:01:15]} 11. Re1 {[%emt 0:01:46]} Qc7 {[%emt 0:02:37]} 12. Qd2 {[%emt 0:01:00]} Nb6 {[%emt 0:01:01]} 13. h3 {[%emt 0:01:52]} Bd7 {[%emt 0:02:46]} 14. Rad1 {[%emt 0:00:26]} Rad8 {[%emt 0:01:03]} 15. Nb1 {[%emt 0:01:24]} exd4 {[%emt 0:03:13]} 16. Nxd4 {[%emt 0:01:02]} d5 {[%emt 0:01:56]} 17. exd5 {[%emt 0:04:04]} Rxe1+ {[%emt 0:01:39]} 18. Qxe1 {[%emt 0:02:43]} Nbxd5 {[%emt 0:00:12]} 19. Nc3 {[%emt 0:07:18]} Re8 {[%emt 0:06:19]} 20. Qd2 {[%emt 0:02:08]} Nb4 {[%emt 0:03:28]} 21. g4 {[%emt 0:07:19]} Bc8 {[%emt 0:18:30]} 22. Nce2 {[%emt 0:17:20]} h5 {[%emt 0:07:09]} 23. gxh5 {[%emt 0:11:01]} Nxh5 {[%emt 0:01:17]} 24. Qg5 {[%emt 0:03:30]} Re5 {[%emt 0:00:47]} 25. Qd2 {[%emt 0:02:59]} Qe7 {[%emt 0:06:43]} 26. Ng3 {[%emt 0:09:39]} Nxg3 {[%emt 0:05:08]} 27. fxg3 {[%emt 0:00:06]} c5 {[%emt 0:00:27]} 28. c3 {[%emt 0:01:15]} Na6 {[%emt 0:04:41]} 29. Ba3 {[%emt 0:01:32]} Qe8 {[%emt 0:00:54]} 30. Nb5 {[%emt 0:07:05]} Re2 {[%emt 0:03:44]} 31. Qd3 {[%emt 0:01:03]} Qe5 {[%emt 0:02:41]} 32. Bc1 {[%emt 0:01:03]} c4 {[%emt 0:03:59]} 33. bxc4 {[%emt 0:00:52]} Bf5 {[%emt 0:02:59]} 34. Qf3 {[%emt 0:00:24]} Bc2 {[%emt 0:07:25]} 35. Rf1 {[%emt 0:00:59]} Bc5+ {[%emt 0:00:16]} 36. Kh2 {[%emt 0:01:11]} Bg6 {[%emt 0:01:34]} 37. Bf4 {[%emt 0:01:50]} Qe4 {[%emt 0:00:33]} 38. Kh1 {[%emt 0:00:13]} Qc2 {[%emt 0:00:37]} 39. Rc1 {[%emt 0:00:48]} Qa2 {[%emt 0:01:35]} 40. Qxb7 {[%emt 0:00:05]} Be4 {[%emt 0:00:28]} 41. Qxe4 {[%emt 0:01:16]} Rxe4 {[%emt 0:00:08]} 42. Bxe4 {[%emt 0:00:04]} Qxc4 {[%emt 0:00:18]} 43. Bb7 {[%emt 0:00:27]} Qe6 {[%emt 0:02:45]} 44. g4 {[%emt 0:01:25]} Qb6 {[%emt 0:01:04]} 45. Bd5 {[%emt 0:00:16]} Qf6 {[%emt 0:00:34]} 46. Rf1 {[%emt 0:00:20]} Be3 {[%emt 0:00:12]} 47. Bb7 {[%emt 0:03:15]} Nc5 {[%emt 0:00:27]} 48. g5 {[%emt 0:00:09]} Qf5 {[%emt 0:00:20]} 49. Nd4 {[%emt 0:00:23]} Qxh3+ {[%emt 0:00:10]} 0-1

[Event "78th GEO-ch Women 1st League 2021"]
[Site "Tbilisi"]
[Date "2021.03.26"]
[Round "9.4"]
[White "Tsotsonava, Elene"]
[Black "Khurtsilava, Inga"]
[Result "1-0"]
[ECO "B12"]
[WhiteElo "1805"]
[BlackElo "2260"]
[Annotator "ChessBase"]
[PlyCount "79"]
[EventDate "2021.03.18"]
[EventType "swiss"]
[EventCountry "GEO"]
[SourceTitle "playchess.com"]
[Source "ChessBase"]
[SourceQuality "1"]
[TimeControl "5400+30"]

1. e4 {[%emt 0:00:00]} c6 {[%emt 0:00:00]} 2. d4 {[%emt 0:00:00]} d5 {[%emt 0:00:15]} 3. e5 {[%emt 0:00:00]} g6 {[%emt 0:02:16]} 4. f4 {[%emt 0:02:05]} h5 {[%emt 0:03:17]} 5. Nf3 {[%emt 0:00:16]} Bg4 {[%emt 0:00:06]} 6. Bd3 {[%emt 0:02:24]} e6 {[%emt 0:00:13]} 7. Be3 {[%emt 0:07:16]} h4 {[%emt 0:01:32]} 8. h3 {[%emt 0:00:34]} Bxf3 {[%emt 0:00:20]} 9. Qxf3 {[%emt 0:00:51]} Nh6 {[%emt 0:00:41]} 10. Nd2 {[%emt 0:00:57]} Nf5 {[%emt 0:00:24]} 11. Bf2 {[%emt 0:05:37]} Qb6 {[%emt 0:04:10]} 12. O-O {[%emt 0:11:09]} Nd7 {[%emt 0:11:43]} 13. c4 {[%emt 0:17:01]} Qb4 {[%emt 0:13:30]} 14. Rfd1 {[%emt 0:04:36]} dxc4 {[%emt 0:02:14]} 15. Nxc4 {[%emt 0:00:49]} Nb6 {[%emt 0:00:09]} 16. a3 {[%emt 0:04:44]} Qe7 {[%emt 0:00:11]} 17. Nxb6 {[%emt 0:07:05]} axb6 {[%emt 0:00:15]} 18. d5 {[%emt 0:00:20]} exd5 {[%emt 0:00:47]} 19. Bxf5 {[%emt 0:00:10]} gxf5 {[%emt 0:00:08]} 20. Bxb6 {[%emt 0:00:21]} Qe6 {[%emt 0:00:44]} 21. b4 {[%emt 0:01:02]} Be7 {[%emt 0:02:41]} 22. Bf2 {[%emt 0:02:22]} Qh6 {[%emt 0:06:27]} 23. b5 {[%emt 0:02:54]} O-O {[%emt 0:14:54]} 24. bxc6 {[%emt 0:00:51]} bxc6 {[%emt 0:00:20]} 25. a4 {[%emt 0:01:14]} Rfb8 {[%emt 0:00:30]} 26. a5 {[%emt 0:02:43]} Ra6 {[%emt 0:01:15]} 27. Qd3 {[%emt 0:05:13]} Rba8 {[%emt 0:01:35]} 28. Qxf5 {[%emt 0:00:58]} Rxa5 {[%emt 0:06:40]} 29. Rxa5 {[%emt 0:00:02]} Rxa5 {[%emt 0:00:04]} 30. Qc8+ {[%emt 0:00:08]} Bf8 {[%emt 0:01:29]} 31. f5 {[%emt 0:03:08]} Ra2 {[%emt 0:07:54]} 32. e6 {[%emt 0:09:28]} fxe6 {[%emt 0:05:59]} 33. fxe6 {[%emt 0:00:02]} Re2 {[%emt 0:00:11]} 34. Bc5 {[%emt 0:01:24]} Qg7 {[%emt 0:01:16]} 35. g4 {[%emt 0:01:49]} Re4 {[%emt 0:06:07]} 36. Rf1 {[%emt 0:02:38]} Rxg4+ {[%emt 0:00:52]} 37. Kh1 {[%emt 0:00:16]} Rg3 {[%emt 0:04:08]} 38. Qxf8+ {[%emt 0:00:44]} Qxf8 {[%emt 0:00:07]} 39. Rxf8+ {[%emt 0:00:04]} Kg7 {[%emt 0:00:09]} 40. e7 {[%emt 0:00:05]} 1-0

[Event "78th GEO-ch Women 1st League 2021"]
[Site "Tbilisi"]
[Date "2021.03.26"]
[Round "9.5"]
[White "Esadze, Tamari"]
[Black "Antia, Sopia"]
[Result "1-0"]
[ECO "C95"]
[WhiteElo "1889"]
[BlackElo "1594"]
[Annotator "NA"]
[PlyCount "101"]
[EventDate "2021.03.18"]
[EventType "swiss"]
[EventCountry "GEO"]
[SourceTitle "playchess.com"]
[Source "ChessBase"]
[SourceQuality "1"]
[TimeControl "5400+30"]

1. e4 {[%emt 0:00:00]} e5 {[%emt 0:00:00]} 2. Nf3 {[%emt 0:00:03]} Nc6 {[%emt 0:00:00]} 3. Bb5 {[%emt 0:00:03]} a6 {[%emt 0:00:00]} 4. Ba4 {[%emt 0:00:02]} Nf6 {[%emt 0:00:00]} 5. O-O {[%emt 0:00:04]} Be7 {[%emt 0:00:00]} 6. Re1 {[%emt 0:00:03]} b5 {[%emt 0:00:03]} 7. Bb3 {[%emt 0:00:02]} d6 {[%emt 0:00:24]} 8. c3 {[%emt 0:00:04]} O-O {[%emt 0:00:04]} 9. h3 {[%emt 0:00:02]} Nb8 {[%emt 0:00:03]} 10. d4 {[%emt 0:00:04]} Nbd7 {[%emt 0:00:05]} 11. Nbd2 {[%emt 0:00:20]} Bb7 {[%emt 0:00:12]} 12. Bc2 {[%emt 0:00:44]} Re8 {[%emt 0:00:05]} 13. Nf1 {[%emt 0:01:19]} Bf8 {[%emt 0:00:08]} 14. Ng3 {[%emt 0:00:17]} g6 {[%emt 0:00:04]} 15. b3 {[%emt 0:04:58]} Bg7 {[%emt 0:00:51]} 16. d5 {[%emt 0:01:05]} Nb6 {[%emt 0:01:06]} 17. Rb1 {[%emt 0:02:34]} h6 {[%emt 0:06:39]} 18. Be3 {[%emt 0:01:55]} Nbd7 {[%emt 0:06:09]} 19. Nh2 {[%emt 0:05:54]} Bf8 {[%emt 0:02:29]} 20. Qd2 {[%emt 0:04:47]} Kh7 {[%emt 0:00:13]} 21. Rf1 {[%emt 0:01:32]} c6 {[%emt 0:02:16]} 22. c4 {[%emt 0:05:03]} Rc8 {[%emt 0:09:04]} 23. f4 {[%emt 0:02:07]} Qe7 {[%emt 0:01:54]} 24. Nf3 {[%emt 0:09:50]} exf4 {[%emt 0:07:29]} 25. Bxf4 {[%emt 0:00:05]} Ne5 {[%emt 0:00:22]} 26. Nxe5 {[%emt 0:04:59]} dxe5 {[%emt 0:00:06]} 27. Be3 {[%emt 0:00:13]} cxd5 {[%emt 0:32:15]} 28. exd5 {[%emt 0:04:29]} Ng8 {[%emt 0:08:09]} 29. d6 {[%emt 0:02:58]} Qd7 {[%emt 0:00:08]} 30. Qf2 {[%emt 0:05:32]} f6 {[%emt 0:03:10]} 31. c5 {[%emt 0:04:22]} e4 {[%emt 0:01:16]} 32. b4 {[%emt 0:02:51]} Bg7 {[%emt 0:01:25]} 33. Rbd1 {[%emt 0:00:51]} f5 {[%emt 0:00:48]} 34. Qd2 {[%emt 0:00:45]} Nf6 {[%emt 0:00:28]} 35. Bb3 {[%emt 0:00:12]} Rf8 {[%emt 0:05:10]} 36. Ne2 {[%emt 0:02:42]} Nh5 {[%emt 0:02:37]} 37. Bd4 {[%emt 0:03:35]} f4 {[%emt 0:01:54]} 38. Bxg7 {[%emt 0:02:11]} e3 {[%emt 0:01:04]} 39. Qd4 {[%emt 0:03:00]} Bxg2 {[%emt 0:03:03]} 40. Kxg2 {[%emt 0:03:55]} f3+ {[%emt 0:00:51]} 41. Rxf3 {[%emt 0:02:58]} Rxf3 {[%emt 0:00:30]} 42. Kxf3 {[%emt 0:00:04]} Qxh3+ {[%emt 0:02:23]} 43. Ke4 {[%emt 0:00:03]} Qg2+ {[%emt 0:03:32]} 44. Kd3 {[%emt 0:00:59]} Nxg7 {[%emt 0:00:34]} 45. Rg1 {[%emt 0:01:39]} Qc6 {[%emt 0:02:25]} 46. Qe4 {[%emt 0:00:56]} Qxe4+ {[%emt 0:00:16]} 47. Kxe4 {[%emt 0:00:02]} Re8+ {[%emt 0:01:00]} 48. Kd5 {[%emt 0:00:14]} Rf8 {[%emt 0:00:41]} 49. d7 {[%emt 0:00:20]} Nf5 {[%emt 0:00:31]} 50. c6 {[%emt 0:00:21]} Kg7 {[%emt 0:00:32]} 51. c7 {[%emt 0:00:14]} 1-0